Cogmind - Beta 15 @@@ ROGUE MODE // 2025.08.18 @ 21:19:45 Player: tc Result: Destroyed by G-47 Trooper with Particle Gun Performance ------------- Evolutions (2) 1000 Regions Visited (3) 600 Robots Destroyed (40) 200 Value Destroyed (952) 952 Prototype IDs (0) 0 Alien Tech Used (0) 0 Bonus (0) 0 TOTAL SCORE: 2752 Bonus ------- None Cogmind --------- Core Integrity 0/550 Matter 300/300 Energy 100/100 System Corruption 0% Temperature Cool (27) Movement Core (100) Ox1 Location -8/Materials Parts ------- > --- POWER (2) -------- (None) > --- PROPULSION (2) --- (None) > --- UTILITY (4) ------ (None) > --- WEAPON (3) ------- Great Maul > --- INVENTORY (5) ---- Aluminum Leg Aluminum Leg Utility Shielding Peak State ------------ > --- POWER ------------ Ion Engine Light Ion Engine > --- PROPULSION ------- Cesium-ion Thruster Cesium-ion Thruster > --- UTILITY ---------- Heat Sink Small Storage Unit > --- WEAPON ----------- Medium Laser Small Laser Heavy Assault Rifle > --- INVENTORY -------- Improved Ion Engine Light Treads Aluminum Leg Aluminum Leg Utility Shielding Medium Laser Small Laser Grenade Launcher [Rating: 14] Favorites ----------- Power Ion Engine Engine Ion Engine Power Core Light Nuclear Core Propulsion Light Treads Treads Light Treads Flight Unit Cesium-ion Thruster Utility Small Storage Unit Device Heat Sink Storage Small Storage Unit Protection Utility Shielding Weapon Medium Laser Energy Gun Medium Laser Ballistic Gun Heavy Assault Rifle Launcher Grenade Launcher Impact Weapon Great Maul Build | -11 -10 -9 -8 ------- Run | Yrd Mat Mat Mat Slots Evolved 4 | . . 2 2 Power 1 | . . 1 . Propulsion . | . . . . Utility 2 | . . . 2 Weapon 1 | . . 1 . Parts Attached 23 | 6 6 9 2 Power 5 | 1 2 2 . Engine 4 | 1 2 1 . Core 1 | . . 1 . Reactor . | . . . . Propulsion 6 | 2 . 4 . Treads 4 | 2 . 2 . Leg . | . . . . Wheel . | . . . . Hover . | . . . . Flight 2 | . . 2 . Utility 3 | 1 1 1 . Device 1 | . . 1 . Storage 1 | 1 . . . Processor . | . . . . Hackware . | . . . . Protection 1 | . 1 . . Artifact . | . . . . Weapon 9 | 2 3 2 2 Energy Gun 5 | 2 3 . . Energy Cannon . | . . . . Ballistic Gun 1 | . . 1 . Ballistic Cannon . | . . . . Launcher 1 | . . 1 . Special Weapon . | . . . . Impact Weapon 2 | . . . 2 Slashing Weapon . | . . . . Piercing Weapon . | . . . . Special Melee Weapon . | . . . . Unidentified Prototypes . | . . . . Parts Lost 17 | . 1 14 2 Power 5 | . 1 4 . Propulsion 3 | . . 2 1 Utility 2 | . . 2 . Weapon 7 | . . 6 1 Highest Loss Streak 6 | . 1 6 1 To Critical Strikes . | . . . . Average Backups 4 | 1 6 4 3 Power . | . 1 . . Propulsion 2 | . 2 2 2 Utility . | . . . 1 Weapon 1 | . 3 1 . Tool/Special . | . . . . Unused Backups 3 | . 1 . 2 Power . | . . . . Propulsion 2 | . . . 2 Utility 1 | . 1 . . Weapon . | . . . . Tool/Special . | . . . . Average Slot Usage (%) 81 | . 96 89 11 Engine 11 | . 12 13 . Core 3 | . . 6 . Treads 19 | . 28 17 5 Device 3 | . . 6 . Storage 10 | . 14 11 . Protection 5 | . 12 1 . Energy Gun 21 | . 28 22 . Ballistic Gun 4 | . . 8 . Peak Build Rating 14 | 6 7 14 6 Average Rating 8 | 4 6 11 2 On Entrance 3 | . 6 7 1 Naked Turns 12 | . . . 12 Heaviest Build 26 | 12 15 26 8 Greatest Support 40 | 40 40 40 20 Greatest Overweight (x) 2 | . . 1 2 Average Overweight (x) . | . . . . Largest Inventory Capacity 8 | 8 8 8 5 Average Capacity 7 | 7 8 7 5 Most Carried 8 | 4 8 8 4 Average Carried 4 | 1 6 4 3 Final Capacity 8 | 8 8 5 5 Final Carried 7 | 4 7 3 3 Class Distribution -------------------- 54% | Mutant 36% | Scavenger-Gunner 4% | Tank 4% | Scavenger-Mutant Dominant Class ---------------- Mutant | -10/Materials Scavenger-Gunner | -9/Materials Mutant | -8/Materials Resources | -11 -10 -9 -8 ----------- Run | Yrd Mat Mat Mat Matter Collected 663 | 237 93 313 20 Remotely . | . . . . Salvage Created 1197 | . 285 751 161 Parts 81 | . 31 48 2 Haulers Intercepted . | . . . . Recyclers Shooed . | . . . . Parts Field Recycled . | . . . . Retrieved Matter . | . . . . Parts Self-Destructed . | . . . . Prevented . | . . . . Kills | -11 -10 -9 -8 ------- Run | Yrd Mat Mat Mat Combat Hostiles Destroyed 34 | . 15 16 3 Melee 1 | . . . 1 Guns 28 | . 13 15 . AOE 3 | . 2 1 . Classes Destroyed 7 | . 3 3 1 Worker 1 | . 1 . . Builder 3 | . . 3 . Recycler 1 | . . 1 . Watcher 1 | . . . 1 Swarmer 15 | . 12 3 . Grunt 15 | . 3 9 3 Sentry 4 | . . 4 . Best Kill Streak 6 | . 6 6 4 Combat Bots Only 6 | . 6 5 3 Max Kills in Single Turn 3 | . 3 3 1 Gunslinging 1 | . 1 . . Exploded 2 | . 2 1 . Melee 1 | . . . 1 Uniques/NPCs Destroyed . | . . . . Combat | -11 -10 -9 -8 -------- Run | Yrd Mat Mat Mat Hostile Shots Fired 244 | . 53 113 78 Missed 70 | . 18 30 22 Hits 174 | . 35 83 56 Melee 4 | . . 4 . Projectile 170 | . 35 79 56 Critical Strikes 3 | . . 1 2 Damage Taken 2332 | . 320 1168 844 Core 824 | . 34 224 566 Absorbed by Shields . | . . . . Redirected to Shielding 6 | . 1 5 . Regen/Repaired (Parts) 73 | . . 73 . Core Remaining (%) 76 | 100 86 44 . Volleys Fired 80 | . 29 51 . Largest 3 | . 2 3 . Hottest 140 | . 100 140 . Shots Fired 187 | . 55 132 . Gun 185 | . 55 130 . Cannon . | . . . . Launcher 2 | . . 2 . Special . | . . . . Kinetic 39 | . . 39 . Thermal 132 | . 47 85 . Explosive 2 | . . 2 . Electromagnetic 14 | . 8 6 . Robot Hit Streak 11 | . 11 10 . Robot Miss Streak 4 | . 2 4 . Penetration Max . | . . . . Secondary Targets 4 | . 3 1 . Max Gunslinging Chain 1 | . 1 1 . Shots Hit Robots 119 | . 35 77 7 Core Hits 53 | . 18 34 1 Critical Kills . | . . . . Critical Parts Destroyed 3 | . . . 3 Critical Strikes 8 | . . 5 3 Burn 5 | . . 5 . Smash 3 | . . . 3 Melee Attacks 12 | . . . 12 Impact 12 | . . . 12 Slashing . | . . . . Piercing . | . . . . Sneak Attacks . | . . . . Combat Hostiles . | . . . . Follow-up Attacks 4 | . . . 4 Damage Inflicted 2188 | . 525 1286 377 Guns 1485 | . 425 1060 . Cannons . | . . . . Explosions 326 | . 100 226 . Melee 366 | . . . 366 Ramming 11 | . . . 11 Kinetic 328 | . . 328 . Thermal 1142 | . 470 672 . Explosive 226 | . . 226 . Electromagnetic 115 | . 55 60 . Impact 366 | . . . 366 Slashing . | . . . . Piercing . | . . . . Highest Corruption 2 | . 2 2 . Average Corruption 2 | . 2 2 . Corruption Purged . | . . . . Corruption Blocked . | . . . . Effects 5 | . . 5 . Matter Fused 1 | . . 1 . Parts Rejected 1 | . . 1 . Parts Fused 1 | . . 1 . Data Loss (minor) 1 | . . 1 . Weapon Failures 1 | . . 1 . Overload Shots . | . . . . Overflow Damage 228 | . 12 . 216 Projectiles . | . . . . Explosions 12 | . 12 . . Melee 216 | . . . 216 Knockbacks 2 | . . . 2 Impact 2 | . . . 2 Kinetic . | . . . . Secondary . | . . . . Self-Inflicted Damage 5 | . . . 5 Shots . | . . . . Rammed 1 | . . . 1 Targets Rammed 1 | . . . 1 Kicked . | . . . . Crushed . | . . . . Highest Temperature 596 | . 296 596 6 Average Temperature 143 | . 97 167 6 Received Heat Transfer 1062 | . 72 459 531 Effects 27 | . 5 22 . Shutdowns 5 | . . 5 . Energy Bleed 3 | . 1 2 . Interference 8 | . 4 4 . Matter Decay 1 | . . 1 . Short Circuit 1 | . . 1 . Damage (minor) 2 | . . 2 . Damage (major) 6 | . . 6 . Damage (core) 1 | . . 1 . Siege Activations . | . . . . Martial Activations . | . . . . Shielding Activations . | . . . . Robots Disrupted . | . . . . Combat Hostiles . | . . . . Robots Corrupted 3 | . . . 3 Combat Hostiles 2 | . . . 2 Parts Fried 2 | . . . 2 Impact Corruptions 7 | . . . 7 Robots Melted . | . . . . Combat Hostiles . | . . . . Parts Melted 7 | . 1 6 . Heat Transferred 3400 | . 1103 2297 . Parts Sabotaged . | . . . . Parts Stolen . | . . . . Parts Stripped . | . . . . Power Chain Reactions 1 | . 1 . . Alert | -11 -10 -9 -8 ------- Run | Yrd Mat Mat Mat Maximum Alert Level 1 | . 1 1 . Low Security (%) 84 | 100 97 69 100 Level 1 15 | . 2 30 . Level 2 . | . . . . Level 3 . | . . . . Level 4 . | . . . . Level 5 . | . . . . High Security . | . . . . Max Security . | . . . . Peak Influence 238 | . 205 238 75 Initial 75 | . . 75 58 Average 126 | . 139 160 35 Influence Increases 949 | . 375 482 92 Destroy 0b10 Robot/C 680 | . 300 320 60 Destroy 0b10 Robot/NC 30 | . 5 20 5 Destroy Leader 142 | . 50 80 12 Successful Hack 3 | . . 3 . Destroy Structure 19 | . 5 14 . Lose Combat Pursuer 75 | . 15 45 15 Influence Decreases 884 | . 196 522 166 Entered New Map 185 | . . 104 81 Time Decay 529 | . 186 278 65 Lost Part 170 | . 10 140 20 Squads Dispatched 4 | . 1 1 2 Investigation 2 | . 1 . 1 Extermination . | . . . . Reinforcement 2 | . . 1 1 Assault . | . . . . Garrison . | . . . . Intercept . | . . . . Searches Triggered . | . . . . Construction Impeded . | . . . . Haulers Reinforced . | . . . . Active Scanning Responses . | . . . . Cargo Convoy Interrupts . | . . . . Stealth | -11 -10 -9 -8 --------- Run | Yrd Mat Mat Mat Distress Signals 3 | . 1 2 . Communications Jammed . | . . . . Distress Signals . | . . . . Times Spotted 55 | . 17 25 13 Peak Tracking Total 7 | . 6 5 7 Tactical Retreats 3 | . 1 1 1 Traps | -11 -10 -9 -8 ------- Run | Yrd Mat Mat Mat Traps Triggered 4 | . 2 1 1 Indirectly . | . . . . Trap Hack Attempts . | . . . . Triggered . | . . . . Disarmed . | . . . . Reprogrammed . | . . . . Reused . | . . . . Traps Extracted . | . . . . Installed . | . . . . Triggered . | . . . . Machines | -11 -10 -9 -8 ---------- Run | Yrd Mat Mat Mat Machines Disabled . | . . . . Max in Single Turn . | . . . . Machines Repaired . | . . . . Machines Dismantled . | . . . . Machines Sabotaged . | . . . . Overloaded Fab Kills . | . . . . Hacking | -11 -10 -9 -8 --------- Run | Yrd Mat Mat Mat Machines Accessed 2 | . . 1 1 Terminals . | . . . . Fabricators . | . . . . Repair Stations 1 | . . 1 . Recycling Units . | . . . . Scanalyzers 1 | . . . 1 Garrison Access . | . . . . Total Hacks 5 | . . 2 3 Successful 4 | . . 2 2 Failed 1 | . . . 1 Catastrophic . | . . . . Database Lockouts . | . . . . Manual . | . . . . Terminals . | . . . . Fabricators . | . . . . Repair Stations 2 | . . 2 . Recycling Units . | . . . . Scanalyzers 3 | . . . 3 Garrison Access . | . . . . Terminal Hacks . | . . . . Fabricator Hacks . | . . . . Repair Station Hacks 2 | . . 2 . Scan Component 1 | . . 1 . Repair 1 | . . 1 . Recycling Unit Hacks . | . . . . Scanalyzer 2 | . . . 2 Insert Component 1 | . . . 1 Analyze 1 | . . . 1 Garrison Access Hacks . | . . . . Unauthorized Hacks . | . . . . Terminals . | . . . . Fabricators . | . . . . Repair Stations . | . . . . Recycling Units . | . . . . Scanalyzers . | . . . . Garrison Access . | . . . . Data Cores Recovered . | . . . . Used . | . . . . Hacking Detections 2 | . . 1 1 Full Trace Events . | . . . . Feedback Events . | . . . . Feedback Blocked . | . . . . Robot Schematics Acquired . | . . . . Robots Built . | . . . . Authchips . | . . . . Time . | . . . . Total Robot Build Rating . | . . . . Part Schematics Acquired 1 | . . . 1 Parts Built . | . . . . Authchips . | . . . . Time . | . . . . Total Part Build Rating . | . . . . Parts Repaired 1 | . . 1 . Time 32 | . . 32 . Parts Recycled . | . . . . Recycled Matter . | . . . . Retrieved Matter . | . . . . Retrieved Components . | . . . . Parts Scanalyzed 1 | . . . 1 Part Schematics Acquired 1 | . . . 1 Parts Damaged . | . . . . Bothacking | -11 -10 -9 -8 ------------ Run | Yrd Mat Mat Mat Used RIF Installer . | . . . . Robots Hacked . | . . . . Non-combat . | . . . . Combat . | . . . . Robot Hacks Applied . | . . . . Relay Couplers Released . | . . . . Fabnet Peak Effective % . | . . . . Robots Rewired . | . . . . Allies Hacked . | . . . . Hacks Repelled . | . . . . Allies | -11 -10 -9 -8 -------- Run | Yrd Mat Mat Mat Total Allies . | . . . . Largest Group . | . . . . Highest-Rated Group . | . . . . Highest-Rated Ally . | . . . . Total Orders . | . . . . Ally Attacks . | . . . . Total Damage . | . . . . Kills . | . . . . Allies Corrupted . | . . . . Allies Melted . | . . . . Intel | -11 -10 -9 -8 ------- Run | Yrd Mat Mat Mat Active Infowar (turns) . | . . . . Robot Analysis Total . | . . . . Derelict Logs Recovered . | . . . . Drone Launches . | . . . . Drone Recoveries . | . . . . Exploration | -11 -10 -9 -8 ------------- Run | Yrd Mat Mat Mat Turns Passed 1281 | 89 428 605 159 Spaces Moved 557 | 51 205 209 92 Core 44 | 7 . . 37 Treads 509 | 44 205 205 55 Legs . | . . . . Wheels . | . . . . Hover . | . . . . Flight 4 | . . 4 . Fastest Speed 50 | 50 160 112 50 Average Speed 163 | 144 160 183 135 Slowest Speed 240 | 160 160 240 160 Overloaded Moves . | . . . . Propulsion Burnouts . | . . . . Robots Hopped . | . . . . Potential Cave-ins . | . . . . Cave-ins Triggered . | . . . . Exploration Rate (%) 23 | 4 48 32 11 Regions Visited 3 Branch Regions . Pre-discovered Areas . | . . . . Known Exits Taken . | . . . . Unknown Exits Taken 3 | 1 1 1 . Scrap Searched . | . . . . Spaces Dug . | . . . . Terrain Destroyed 16 | . 4 12 . Melee . | . . . . Projectile . | . . . . AOE 16 | . 4 12 . Terrain Rammed . | . . . . Walls Destroyed . | . . . . Machines Disabled . | . . . . Actions | -11 -10 -9 -8 --------- Run | Yrd Mat Mat Mat Total 747 | 66 250 323 108 Wait 35 | . 1 31 3 Move 554 | 50 204 208 92 Hop . | . . . . Pick Up 27 | 10 6 9 2 Fast Attach 1 | . . 1 . Attach 21 | 6 4 9 2 Detach 2 | . 2 . . Swap 13 | . 3 10 . Drop 5 | . 1 4 . Fire 80 | . 29 51 . Melee 8 | . . . 8 Ram 1 | . . . 1 Kick . | . . . . Crush . | . . . . Escape Stasis . | . . . . Rewire . | . . . . Trap . | . . . . Miscellaneous . | . . . . Route ------- -11/Scrapyard -10/Materials (discovered 3 exits: *Mat x2 / [*Min]) -9/Materials -8/Materials History --------- Turn | Location | Event 5 | -11/Scrapyard | Discovered new exit (range 15) 90 | -11/Scrapyard | Entered Materials 231 | -10/Materials | Discovered new exit (range 7) 301 | -10/Materials | Build established: Mutant 320 | -10/Materials | Discovered new exit (range 14) 510 | -10/Materials | Discovered new exit (range 4) 518 | -10/Materials | Entered another Materials area 518 | -9/Materials | Evolved 2 slots: Power x1, Weapon x1 752 | -9/Materials | Repaired Hvy. Assault Rifle 962 | -9/Materials | Lost 3 parts (1n2w) 1060 | -9/Materials | Build established: Scavenger-Gunner 1096 | -9/Materials | Discovered new exit (range 15) 1111 | -9/Materials | Core integrity fell below 50% 1123 | -9/Materials | Entered another Materials area 1123 | -8/Materials | Evolved 2 slots: Utility x2 1151 | -8/Materials | Lost 6 parts (2p1u3w) 1265 | -8/Materials | Core integrity fell below 50% 1272 | -8/Materials | Core integrity fell below 20% 1282 | -8/Materials | Destroyed by G-47 Trooper with Particle Gun Last Messages --------------- Critical hit (Burn: +37). Destroyed Imp. Heat Sink. G-47 Trooper system corrupted by crushing effect. G-47 Trooper knocked back. G-47 Trooper misfires. G-47 Trooper destroyed. G-47 Trooper suffers critical hit (Smash). Destroyed Aluminum Leg. G-47 Trooper system corrupted by crushing effect. Great Maul follow-up attack on G-47 Trooper. Destroyed Lgt. Nuclear Core. G-47 Trooper system corrupted by crushing effect. G-47 Trooper knocked back. G-47 Trooper system terminally corrupted. Aluminum Leg fried. Critical hit (Burn: +37). Great Maul destroyed. Map ----- +----------------------------------------------------+ | | | | | | | | | | | | | | | | | | | | | | | ???????????????????????????????????????? | | ???????????????????????????????????????? | | ???????????????????????????????????????? | | ???????????????????????????????????????? | | ???????????????????????????????????" ??? | | ?????????????????????????????????? ???? | | ????????????????######??????????? ????? | | ???????????###+## #########+##+#????? | | ???????????# #????? | | ???????????# #????? | | ????????????# """ """ """ #?#### | | ????????????# """ """ """ !//#?# | | ????????????# """ """ """ !//#?# | | ???????# #### u /#?# " | | ???????+ @ % ### "" | | ???????# g%g % / "" | | ???????## ### ### =#### ####### "" | | ????????????# #?#*%####+####### " | | ????????????# wu #?# # ## | | ????????????# gg #?# # """ ## | | ????????????# #?# #] """"" ###+# | | ????????????# ######?# # """"" #?# # | | ????????????# ???????# # """"" ### # | | ????????????# ???????# + """ + # | | ????????????a ???????# # ##### | | ????????????# ???????# # = #???? | | ????????????##s???????#+############???? | | ?????????????#s????????????????????????? | | ?????????????? ????????????????????????? | | ???????????????????????????????????????? | | ???????????????????????????????????????? | | ???????????????????????????????????????? | | ???????????????????????????????????????? | | ???????????????????????????????????????? | | ???????????????????????????????????????? | | ???????????????????????????????????????? | | ???????????????????????????????????????? | | ???????????????????????????????????????? | | ???????????????????????????????????????? | +----------------------------------------------------+ Best States ------------- Heat Dissipation 38 Energy Generation 21 Energy Capacity 415 Matter Stores 300 Matter Capacity 300 Sight Range 16 Terrain Scan Density 10 Utility Shielding 33 Evasion (%) 50 Recoil Reduction 2 Item Schematics ----------------- Utility Shielding | -8/Materials | Scanalyzed Robot Schematics ------------------ None Fabricated ------------ Nothing Repaired ---------- Hvy. Assault Rifle | 36% | -9/Materials Alien Tech Used ----------------- None Achievements -------------- None Challenges ------------ None Game ------ Seed ForcePhasingRecalibrator Manual? 0 Play Time 00:29:00 Cumulative 9.4 hours Start 2025.08.18 @ 20:51:14 End 2025.08.18 @ 21:19:45 Sessions 1 Manual Loads 0 Difficulty Rogue Special Mode None Game No. 14 Rogue 14 Adventurer 0 Explorer 0 Win Type - Total 0 Types 0/0/0/0/0/0/0/0/0/0 Lore% 6 Gallery% 11 Achievement% 14 Wizard Run 0 Options --------- Layout 1 ASCII 0 Keyboard 0 Movement Mouse Keybinds 0 Fullscreen 1 Font 24/Smallcaps Map View 50x35 Zoom Use 0% Tactical HUD 0 Map Filters NONE Filters NONE Steam 1 RUN: 1e196fe3-468a-4f9f-9584-2c0efe6bd7d2